bitfinex/quotes_ETHUSD_20260202
["timestamp","ask_amount","ask_price","bid_price","bid_amount"]
[1770035468387,12.41130539,2314.7,2312.8,0.907]
[1770035468695,12.41130539,2314.5,2312.4,12.52044228]
[1770035468868,1.16046865,2314.9,2312.5,1.25204423]
[1770035468869,12.41130539,2314.3,2312.5,1.25204423]
[1770035469064,12.41130539,2314.3,2312.5,2.33309816]
[1770035469259,12.41130539,2314.3,2312.7,1.08095523]
[1770035469491,12.41130539,2314.3,2312.5,1.25204423]
[1770035469864,12.41130539,2314.3,2312.6,1.08102748]
[1770035470067,12.41130539,2314.1,2312.7,0.23330717]
[1770035470272,0.0011,2313.7,2312.7,1.31428145]
[1770035470578,12.41130539,2314.1,2312.7,1.31428145]
[1770035470783,0.0011,2313.9,2313.0,3.34061589]
[1770035470979,12.41130539,2314.6,2313.1,1.38729339]
[1770035471182,12.41130539,2314.6,2313.2,0.907]
[1770035473908,12.41130539,2314.6,2312.7,0.23330717]
[1770035474198,12.41130539,2314.6,2312.7,1.31425037]
[1770035474377,12.41130539,2314.6,2312.7,1.31428519]
[1770035474777,12.41130539,2314.6,2312.7,0.23330717]
[1770035474989,0.9081,2314.9,2312.7,0.23330717]
[1770035474990,12.41130539,2314.4,2312.7,1.31428836]
[1770035475503,12.41130539,2314.4,2312.9,10.53231802]
[1770035475698,12.41130539,2314.4,2312.7,1.31428836]
[1770035475897,12.41130539,2314.4,2312.9,10.54546006]
[1770035476207,1.24113054,2314.5,2313.0,3.33951589]
[1770035476505,12.41130539,2314.8,2313.1,4.72801349]
[1770035476896,12.41130539,2314.8,2313.2,1.08075393]
[1770035477086,12.41130539,2314.8,2313.3,0.907]
[1770035478809,12.41130539,2314.8,2312.7,0.23330717]
[1770035479010,12.41130539,2314.6,2312.7,0.23330717]
[1770035479307,12.41130539,2314.4,2312.7,0.23330717]
[1770035479606,12.41130539,2314.4,2312.6,1.08100384]
[1770035480109,12.41130539,2314.4,2312.7,4.32380981]
[1770035480286,12.41130539,2314.4,2312.4,11.43931802]
[1770035480486,12.41130539,2314.4,2312.7,1.08098144]
[1770035480704,12.41130539,2314.2,2312.8,0.54051086]
[1770035481589,12.41130539,2314.2,2312.4,1.98809354]
[1770035481792,12.41130539,2314.2,2312.5,15.58108005]
[1770035482002,12.41130539,2314.2,2312.5,15.406]
[1770035482184,12.41130539,2314.2,2312.7,1.08098336]
[1770035482515,12.41130539,2314.2,2312.8,1.08093505]
[1770035482724,12.41130539,2314.2,2312.9,1.59370165]
[1770035483089,12.41130539,2314.2,2312.9,1.59470165]
[1770035483289,12.41130539,2314.2,2312.9,0.001]
[1770035484393,12.41130539,2313.9,2312.6,0.001]
[1770035484587,12.41130539,2313.7,2312.6,0.001]
[1770035486437,0.906,2313.8,2311.5,0.001]
[1770035486438,12.41130539,2312.9,2311.5,0.001]
[1770035486605,12.41130539,2312.7,2311.5,0.001]
[1770035486810,13.31730539,2312.7,2311.5,0.001]
[1770035488335,12.41130539,2312.7,2311.5,0.001]
[1770035489042,12.41130539,2312.5,2311.3,0.001]
[1770035489344,12.41130539,2312.3,2311.3,0.001]
[1770035489524,12.41130539,2312.1,2311.3,0.001]
[1770035490036,12.41130539,2312.1,2311.1,0.001]
[1770035490239,12.41130539,2312.1,2311.0,0.001]
[1770035493448,1.33183054,2312.4,2311.1,10.53231802]
[1770035493664,13.74313593,2312.4,2311.2,1.0533318]
[1770035493958,13.74313593,2312.4,2311.0,0.001]
[1770035494714,12.41130539,2312.2,2311.0,0.001]
[1770035494921,14.55291337,2312.2,2311.0,0.001]
[1770035496021,14.55291337,2312.2,2311.2,0.001]
[1770035496218,2.14160798,2312.2,2311.2,0.001]
[1770035496524,2.14160798,2312.2,2311.2,10.53331802]
[1770035496735,2.14160798,2312.2,2311.3,1.0533318]
[1770035496939,14.55291337,2312.2,2311.3,1.0533318]
[1770035497246,14.55291337,2312.2,2311.2,0.001]
[1770035498825,12.41130539,2312.2,2311.2,0.001]
[1770035499329,0.907,2312.1,2311.2,0.001]
[1770035499529,11.73252872,2312.0,2311.2,0.001]
[1770035500266,11.73252872,2312.0,2311.0,0.001]
[1770035500467,11.73252872,2311.8,2311.0,0.001]
[1770035501483,1.22526828,2312.8,2311.0,0.001]
[1770035501484,11.73252872,2312.7,2311.0,0.001]
[1770035501846,11.73252872,2312.5,2311.0,0.001]
[1770035508485,11.73252872,2312.5,2311.2,0.001]
[1770035508792,12.53469794,2312.3,2311.2,0.001]
[1770035511787,12.53359794,2312.1,2311.0,0.001]
[1770035514590,0.0011,2312.3,2311.0,13.07022999]
[1770035515702,0.0011,2312.3,2311.0,13.97722999]
[1770035516221,0.0011,2312.3,2311.0,15.05898085]
[1770035516407,1.25467979,2312.3,2311.1,1.93872695]
[1770035516996,0.0011,2312.3,2311.1,1.93872695]
[1770035518422,0.0011,2312.3,2311.2,1.08168916]
[1770035518824,0.0011,2312.3,2311.4,9.7217141]
[1770035519126,0.0011,2312.5,2311.4,9.7217141]
[1770035520328,0.0011,2312.5,2311.2,4.42920505]
[1770035520527,12.53469794,2312.5,2311.3,1.06946887]
[1770035520729,12.53469794,2312.5,2311.4,0.001]
[1770035520936,0.0011,2312.3,2311.4,0.001]
[1770035521102,12.53469794,2312.3,2311.4,0.001]
[1770035522212,12.53469794,2312.3,2311.4,9.7227141]
[1770035522213,0.0011,2312.3,2311.4,9.7227141]
[1770035522534,0.0011,2312.3,2311.5,0.97227141]
[1770035522700,0.0011,2312.3,2311.5,2.05380416]
[1770035523041,1.53474896,2313.2,2311.5,2.05380416]
[1770035523042,12.53359794,2313.3,2312.2,9.7217141]
[1770035523329,12.53359794,2313.3,2311.5,0.97227141]
[1770035523512,12.53359794,2313.3,2311.4,0.001]
[1770035523513,12.53359794,2312.7,2311.4,0.001]
[1770035523827,12.53469794,2313.5,2312.2,9.7217141]
[1770035524026,12.53469794,2313.5,2312.3,0.907]
[1770035524228,12.53469794,2313.5,2312.4,1.06287141]
[1770035524405,12.53469794,2313.5,2311.8,0.907]
[1770035524600,12.53359794,2313.3,2311.4,0.001]
[1770035524822,12.53359794,2313.1,2311.8,0.907]
[1770035525025,12.53359794,2312.9,2311.5,0.907]
[1770035525331,12.53359794,2313.1,2311.9,9.7217141]
[1770035525833,11.84598399,2313.1,2311.6,1.08148037]
[1770035526002,11.84598399,2313.1,2311.7,0.907]
[1770035526928,11.84598399,2313.1,2311.5,10.80324038]
[1770035527129,12.53359794,2312.9,2311.6,2.420061]
[1770035527538,12.53359794,2312.9,2311.7,1.08145137]
[1770035527715,12.53359794,2312.9,2311.6,2.420061]
[1770035528029,12.53359794,2312.9,2311.6,3.501539]
[1770035528426,12.53359794,2312.9,2311.6,3.50152984]
[1770035528620,12.53359794,2312.9,2311.7,1.32232439]
[1770035530113,12.53359794,2312.9,2311.6,0.907]
[1770035530321,1.1845984,2313.0,2311.4,0.908]
[1770035530322,11.76406742,2312.7,2311.4,0.908]
[1770035530517,11.76406742,2312.7,2311.4,0.001]
[1770035531429,11.76406742,2312.5,2311.4,0.001]
[1770035531617,11.76406742,2312.3,2311.4,0.001]
[1770035531811,11.76406742,2312.1,2311.4,0.001]
[1770035532233,11.76406742,2311.9,2311.3,2.3440147]
[1770035532536,11.76406742,2311.9,2311.0,0.001]
[1770035533453,11.76406742,2311.9,2311.6,0.001]
[1770035533607,11.76406742,2311.7,2311.6,0.001]
[1770035533810,11.76406742,2312.1,2311.6,0.001]
[1770035534124,11.76406742,2312.5,2311.6,0.001]
[1770035537032,11.76516742,2312.9,2311.6,0.908]
[1770035537348,0.0011,2312.9,2311.9,9.7217141]
[1770035537523,0.0011,2313.1,2311.9,9.7217141]
[1770035538142,0.0011,2313.1,2311.7,1.06297141]
[1770035538334,11.76516742,2313.1,2311.7,1.06297141]
[1770035538954,11.76516742,2313.1,2311.7,2.14441826]
[1770035539153,11.76516742,2313.1,2311.8,0.30524183]
[1770035539826,11.76516742,2313.1,2311.9,0.907]
[1770035540024,11.76516742,2313.1,2311.8,0.30524183]
[1770035540224,11.76516742,2313.1,2311.7,1.06297141]
[1770035540465,11.76516742,2313.1,2311.7,3.05141496]
[1770035540751,11.76516742,2313.1,2311.7,1.96997141]
[1770035540950,11.76516742,2313.1,2311.7,3.05142137]
[1770035541524,0.0011,2313.1,2312.0,9.7217141]
[1770035541747,0.0011,2313.1,2312.1,0.97217141]
[1770035542048,11.76516742,2313.5,2312.4,9.7217141]
[1770035542249,11.76516742,2313.5,2312.5,0.907]
[1770035542548,0.0011,2313.5,2312.7,9.7217141]
[1770035542748,11.76406742,2313.9,2312.7,9.7217141]
[1770035542934,11.76406742,2313.9,2312.8,2.05309656]
[1770035543131,0.0011,2314.0,2312.8,2.05309656]
[1770035543857,11.76516742,2314.0,2312.8,0.97217141]
[1770035544028,11.76516742,2314.0,2312.5,0.907]
[1770035544352,11.76406742,2313.8,2312.1,0.97217141]
[1770035544559,11.76406742,2313.6,2312.1,0.907]
[1770035544866,11.76406742,2313.6,2312.1,1.98826442]
[1770035545645,11.76406742,2313.6,2312.1,0.907]
[1770035548033,11.76406742,2313.6,2312.2,0.001]
[1770035548332,11.76406742,2313.3,2312.2,0.001]
[1770035548534,11.76406742,2313.1,2312.2,0.001]
[1770035549667,11.76406742,2312.9,2312.0,0.001]
[1770035553886,11.76406742,2312.9,2311.6,0.001]
[1770035554761,11.76406742,2312.7,2311.6,0.001]
[1770035554957,11.76406742,2312.5,2311.6,0.001]
[1770035555885,12.67106742,2312.5,2311.6,0.001]
[1770035556059,11.76406742,2312.3,2311.4,2.31174464]
[1770035556453,11.76406742,2312.3,2311.0,0.001]
[1770035557065,11.76406742,2312.1,2311.0,0.001]
[1770035557395,11.76406742,2311.9,2310.8,0.001]
[1770035557603,11.76406742,2311.7,2310.5,0.001]
[1770035558608,11.76406742,2311.7,2310.5,9.7227141]
[1770035558911,3.80222557,2313.1,2310.5,9.7227141]
[1770035558912,12.14255522,2312.1,2310.5,9.7227141]
[1770035559070,12.14255522,2312.1,2310.5,10.8047262]
[1770035559808,12.14255522,2312.1,2310.7,2.25500828]
[1770035560107,12.14255522,2312.1,2310.9,9.7217141]
[1770035560462,12.14255522,2312.8,2310.9,9.7217141]
[1770035561186,12.14255522,2312.8,2311.0,1.08178277]
[1770035561361,0.0011,2312.1,2310.9,9.7227141]
[1770035561565,12.14365522,2312.1,2311.0,0.99483149]
[1770035561760,12.14365522,2312.1,2310.9,0.001]
[1770035561960,12.14255522,2311.9,2310.6,0.001]
[1770035562172,0.92862532,2312.0,2310.6,0.001]
[1770035562173,12.14255522,2311.7,2310.6,0.001]
[1770035565495,12.14365522,2312.1,2310.7,10.6287141]
[1770035567179,12.14365522,2312.1,2310.6,0.001]
[1770035567384,12.14255522,2311.9,2310.6,0.001]
[1770035571613,13.04955522,2311.9,2310.6,0.001]
[1770035573973,13.04955522,2311.9,2310.8,0.001]
[1770035574172,12.26243621,2311.7,2310.8,0.001]
[1770035575203,12.26243621,2311.5,2310.6,0.001]
[1770035575419,12.26243621,2311.3,2310.6,0.001]
[1770035576487,12.26243621,2311.3,2310.3,0.001]
[1770035576796,12.26243621,2311.3,2309.7,0.001]
[1770035576797,12.26243621,2311.1,2309.7,0.001]
[1770035576996,12.26243621,2310.7,2308.7,0.907]
[1770035577218,12.26243621,2310.5,2308.7,0.907]
[1770035577427,12.26243621,2310.5,2309.1,1.08264821]
[1770035577635,12.26243621,2310.5,2308.9,11.61991609]
[1770035577806,12.26243621,2310.5,2308.9,10.53717894]
[1770035578128,12.26243621,2310.5,2309.0,1.08268609]
[1770035578340,12.26243621,2310.5,2308.9,11.61990206]
[1770035578684,12.26243621,2310.5,2308.9,10.53717894]
[1770035579201,12.26243621,2310.5,2308.7,0.907]
[1770035579508,12.26243621,2310.5,2308.5,0.31942185]
[1770035579707,12.26243621,2310.5,2308.5,1.40237241]
[1770035579918,12.26243621,2310.5,2308.5,1.4023477]
[1770035580135,12.26243621,2310.5,2308.6,15.58290396]
[1770035580320,12.26243621,2310.5,2308.5,1.4023523]
[1770035580747,12.26243621,2310.5,2308.5,15.9023523]
[1770035581223,0.9290278,2310.4,2308.5,15.9023523]
[1770035581423,12.26243621,2310.3,2308.5,15.9023523]
[1770035581624,12.26243621,2310.1,2308.5,0.31942185]
[1770035581961,1.15936865,2310.5,2308.5,0.31942185]
[1770035581962,12.26243621,2309.9,2308.5,0.31942185]
[1770035582113,12.26243621,2309.7,2308.5,0.31942185]
[1770035582312,12.26243621,2309.7,2307.9,5.98082616]
[1770035582507,12.26243621,2309.7,2308.0,1.08316407]
[1770035582708,1.31694362,2309.8,2308.5,7.06377744]
[1770035583012,13.17043621,2310.5,2308.1,0.22595033]
[1770035583215,12.26243621,2310.3,2308.1,1.67439554]
[1770035583411,12.26243621,2310.1,2308.1,1.67439554]
[1770035583652,1.15936865,2310.3,2308.1,1.67439554]
[1770035583653,12.26243621,2309.9,2308.3,1.08301124]
[1770035583809,12.26243621,2309.9,2308.3,1.08301775]
[1770035584009,1.31704362,2309.8,2308.4,2.22261318]
[1770035584244,1.31704362,2309.8,2308.4,1.13961976]
[1770035584446,0.908,2310.0,2308.5,5.98082616]
[1770035584651,13.17043621,2310.0,2308.4,2.22261982]
[1770035584938,13.17043621,2310.0,2308.5,14.5]
[1770035585139,12.26243621,2310.8,2308.6,5.98082616]
[1770035585317,12.26243621,2310.6,2308.6,5.98082616]
[1770035586040,12.26243621,2310.6,2308.7,14.501]
[1770035586224,12.26243621,2310.6,2308.7,15.58384622]
[1770035586428,12.26243621,2310.4,2308.8,2.15646724]
[1770035587217,12.26243621,2310.4,2308.7,0.001]
[1770035590615,1.31704362,2310.5,2308.9,5.98082616]
[1770035590941,12.8412376,2310.7,2308.9,5.98082616]
[1770035591344,12.8412376,2311.3,2309.1,5.98082616]
[1770035592325,12.8412376,2311.3,2309.4,1.08253225]
[1770035592529,12.8412376,2311.3,2309.5,0.908]
[1770035593247,0.0011,2311.7,2309.8,10.53717894]
[1770035593248,12.8423376,2311.7,2309.8,10.53717894]
[1770035593429,12.8423376,2311.7,2309.9,7.03454405]
[1770035594120,12.8423376,2311.7,2310.1,5.98082616]
[1770035594336,12.8423376,2311.7,2310.0,15.58224584]
[1770035594536,0.0011,2311.7,2310.1,5.98082616]
[1770035594741,0.0011,2311.7,2310.2,8.13713336]
[1770035595135,12.8423376,2311.7,2310.2,2.1563072]
[1770035596071,12.8423376,2311.7,2309.7,0.908]
[1770035596072,12.8412376,2311.5,2309.7,0.908]
[1770035596248,12.8412376,2311.5,2308.9,5.98082616]
[1770035596249,12.8412376,2311.0,2308.9,5.98082616]
[1770035596450,12.8412376,2310.8,2309.0,15.408]
[1770035596755,12.8412376,2310.8,2309.0,0.908]
[1770035597323,12.8412376,2310.8,2309.2,1.08258636]
[1770035597524,12.8412376,2310.8,2309.4,2.0048207]
[1770035597731,14.12536136,2310.8,2309.4,0.92232606]
[1770035598442,12.8412376,2310.6,2309.4,0.92232606]
[1770035599755,12.8423376,2310.6,2309.4,0.92232606]
[1770035601030,12.8412376,2310.4,2309.4,0.92232606]
[1770035601231,12.8412376,2310.2,2309.0,0.001]
[1770035601462,12.8412376,2310.0,2309.0,0.001]
[1770035602550,13.98796184,2310.4,2309.0,0.001]
[1770035606402,0.0011,2310.6,2309.0,5.98182616]
[1770035606890,12.8423376,2310.6,2309.0,5.98182616]
[1770035607052,12.8423376,2310.6,2309.0,0.001]
[1770035608392,13.7503376,2310.6,2309.0,0.001]
[1770035608686,12.8412376,2310.4,2309.0,0.001]
[1770035608889,12.8412376,2310.2,2309.0,0.001]
[1770035609293,1.3771706,2310.3,2309.0,0.001]
[1770035609447,13.7503376,2310.6,2309.0,0.001]
[1770035610676,0.93058908,2310.5,2309.0,0.001]
[1770035610899,12.8412376,2310.4,2309.0,0.001]
[1770035612187,12.8412376,2310.4,2309.2,0.001]
[1770035612564,0.0011,2310.1,2309.2,0.001]
[1770035614099,0.0011,2310.6,2309.2,6.58010878]
[1770035614998,12.8423376,2310.6,2309.2,6.58010878]
[1770035615577,12.8423376,2310.6,2309.2,7.66271068]
[1770035616162,12.8423376,2310.6,2309.2,6.58010878]
[1770035616595,12.8423376,2310.6,2309.2,7.66273131]
[1770035616803,12.8423376,2310.6,2309.3,0.76627313]
[1770035618270,0.93183672,2310.5,2309.2,1.08359711]
[1770035618578,12.8423376,2310.6,2309.2,1.08359711]
[1770035618766,12.8423376,2310.6,2309.2,0.001]
[1770035619800,11.9696507,2310.4,2309.2,0.001]
[1770035621795,11.9696507,2310.2,2309.2,0.001]
[1770035622105,0.908,2310.5,2309.2,0.001]
[1770035622106,13.25983269,2310.1,2309.2,0.001]
[1770035624679,11.9696507,2309.9,2309.2,0.001]
[1770035624878,0.93354085,2309.8,2309.0,0.001]
[1770035625199,11.9696507,2309.7,2309.0,0.001]
[1770035625406,11.9696507,2309.5,2309.0,0.001]
[1770035625608,13.26009529,2309.4,2309.0,0.001]
[1770035626306,13.26009529,2309.4,2309.1,0.001]
[1770035626602,13.26009529,2309.4,2308.8,0.001]
[1770035626971,13.12901935,2309.8,2308.8,0.001]
[1770035627189,0.93432516,2309.7,2308.8,0.001]
[1770035627394,11.9696507,2309.8,2308.8,0.001]
[1770035627692,0.93401536,2309.7,2308.8,0.001]
[1770035627888,2.22441768,2309.6,2308.8,0.001]
[1770035628102,13.26001731,2309.6,2308.8,0.001]
[1770035628481,12.73729811,2309.9,2308.8,0.001]
[1770035634499,12.73729811,2309.7,2308.8,0.001]
[1770035635097,12.73729811,2309.5,2308.8,0.001]
[1770035635288,14.10439755,2309.4,2308.8,0.001]
[1770035635483,14.10439755,2309.4,2308.7,0.001]
[1770035635877,12.73729811,2309.2,2308.7,0.001]
[1770035637816,12.73729811,2309.2,2308.2,0.001]
[1770035638115,12.73729811,2309.0,2308.2,0.001]
[1770035639236,12.73729811,2309.0,2308.8,0.001]
[1770035639437,1.27372981,2309.1,2307.8,0.001]
[1770035639438,12.73729811,2308.8,2307.8,0.001]
[1770035639630,2.43309846,2309.1,2307.8,0.001]
[1770035639631,12.73729811,2308.6,2307.8,0.001]
[1770035639933,0.908,2308.7,2307.8,0.001]
[1770035639934,12.73729811,2308.4,2307.8,0.001]
[1770035640454,12.73729811,2308.4,2307.4,0.000802]
[1770035641438,12.73729811,2308.2,2307.4,0.000802]
[1770035641634,13.64529811,2308.2,2307.4,0.000802]
[1770035643743,12.73729811,2308.6,2307.4,0.000802]
[1770035644049,14.06706522,2309.0,2307.4,5.98852816]
[1770035644208,12.73729811,2309.0,2307.4,5.98852816]
[1770035644843,12.73729811,2309.0,2307.4,7.07196896]
[1770035645715,12.73729811,2309.0,2307.4,0.908802]
[1770035645915,12.73729811,2309.0,2307.4,7.97999789]
[1770035646125,1.27372981,2308.9,2307.5,1.23138802]
[1770035646839,12.73729811,2309.0,2307.6,1.08337666]
[1770035647339,12.73729811,2309.0,2307.5,7.21911418]
[1770035647514,12.73729811,2309.0,2307.5,1.23138802]
[1770035647718,12.73729811,2309.0,2307.4,0.908802]
[1770035648631,12.73729811,2309.0,2307.4,1.99226726]
[1770035648838,12.73729811,2309.0,2307.4,0.908802]
[1770035649222,12.73729811,2309.0,2307.4,1.99226029]
[1770035650015,12.73729811,2309.0,2307.4,0.908802]
[1770035650212,14.15493611,2308.9,2307.4,1.99226829]
[1770035650826,14.15493611,2308.9,2307.4,7.97999445]
[1770035651009,12.8823063,2309.7,2308.0,5.98772616]
[1770035651216,12.8823063,2309.7,2308.1,6.22129646]
[1770035651750,12.8823063,2309.7,2308.1,5.98772616]
[1770035651918,12.8823063,2309.7,2308.2,0.2335703]
[1770035652118,12.8823063,2309.7,2308.1,5.98772616]
[1770035652319,0.0011,2308.8,2308.2,0.59877262]
[1770035652543,0.0011,2308.8,2307.9,0.908]
[1770035652715,0.0011,2309.0,2307.9,6.89572616]
[1770035653116,0.0011,2309.0,2308.0,1.0831889]
[1770035653352,0.0011,2309.0,2307.9,7.97893178]
[1770035653536,0.0011,2309.0,2307.9,0.908]
[1770035653711,12.8823063,2309.0,2307.9,0.908]
[1770035654038,14.16943693,2308.9,2307.9,0.908]
[1770035654548,14.16943693,2308.9,2307.6,0.001]
[1770035657759,3.56745963,2309.6,2307.9,15.96380872]
[1770035657760,12.8812063,2309.5,2307.9,15.96380872]
[1770035658126,12.8812063,2309.5,2307.9,0.2335703]
[1770035658649,12.8812063,2309.5,2307.7,5.98552616]
[1770035659452,12.8812063,2309.5,2307.6,0.001]
[1770035659453,12.8812063,2309.1,2307.6,0.001]
[1770035659618,15.14379816,2309.0,2307.6,0.001]
[1770035659945,15.14379816,2309.0,2307.6,1.0843759]
[1770035660147,15.14379816,2309.0,2307.6,0.001]
[1770035660350,15.14379816,2309.0,2307.7,1.08330837]
[1770035660552,15.14379816,2309.0,2307.6,1.08433958]
[1770035660862,15.14379816,2309.0,2307.7,0.5651579]
[1770035661338,15.14379816,2309.0,2307.6,0.001]
[1770035662348,12.8812063,2308.8,2307.6,0.001]
[1770035663353,13.7892063,2308.8,2307.6,0.001]
[1770035663572,12.8812063,2308.6,2307.6,0.001]
[1770035664075,12.8812063,2308.4,2307.4,0.001802]
[1770035664253,12.8812063,2308.2,2307.4,0.001802]
[1770035664570,1.15936865,2308.5,2307.4,0.001802]
[1770035664571,12.8812063,2308.5,2307.4,0.001802]
[1770035665967,12.8812063,2308.5,2307.7,0.001]
[1770035666940,12.8812063,2308.3,2307.7,0.001]
[1770035667163,12.8812063,2308.3,2307.5,0.001]
[1770035667164,13.7892063,2308.3,2307.5,0.001]
[1770035667453,12.8812063,2308.1,2307.5,0.001]
[1770035667770,0.908,2308.3,2307.5,0.001]
[1770035668367,13.7892063,2308.3,2307.5,0.001]
[1770035668946,12.8812063,2308.3,2307.5,0.001]
[1770035670192,12.8812063,2308.1,2307.5,0.001]
[1770035670392,12.8812063,2307.9,2307.5,0.001]
[1770035671091,12.8812063,2307.9,2307.4,0.000802]
[1770035671299,12.8812063,2307.9,2306.7,0.0008024]
[1770035672486,12.8812063,2307.7,2306.7,0.0008024]
[1770035672780,13.7902063,2307.7,2306.7,0.0008024]
[1770035672995,12.8812063,2307.5,2306.7,0.0008024]
[1770035673961,0.909,2307.7,2306.7,0.0008024]
[1770035674161,12.8812063,2307.7,2306.7,0.0008024]
[1770035675596,13.7902063,2308.1,2306.7,0.0008024]
[1770035676487,12.8812063,2307.9,2306.7,0.0008024]
[1770035676784,12.8812063,2307.7,2306.7,0.0008024]
[1770035678187,13.29357563,2308.1,2306.7,0.0008024]
[1770035678387,12.38457563,2308.1,2306.7,0.0008024]
[1770035678998,12.38457563,2308.1,2306.9,0.001]
[1770035680566,12.38457563,2307.9,2306.9,0.001]
[1770035680791,12.38457563,2307.7,2306.9,0.001]
[1770035683690,12.38457563,2307.7,2306.7,0.0008024]
[1770035689089,12.42645054,2307.5,2306.7,0.0008024]
[1770035689520,13.35862384,2307.4,2306.7,0.0008024]
[1770035689693,12.42645054,2307.4,2306.7,0.0008024]
[1770035689875,1.24264505,2307.3,2306.7,0.0008024]
[1770035690704,13.66909559,2307.3,2306.7,0.0008024]
[1770035692806,12.42645054,2307.6,2306.7,0.0008024]
[1770035693013,13.35967523,2307.5,2306.9,0.001]
[1770035693208,3.40592844,2307.8,2306.9,0.001]
[1770035693209,12.42645054,2307.3,2306.9,0.001]
[1770035693876,12.42645054,2307.3,2306.7,0.0008024]
[1770035694495,0.0011,2307.5,2306.7,0.0008024]
[1770035694692,0.9336103,2307.4,2306.7,0.0008024]
[1770035694999,12.42755054,2307.5,2306.7,0.0008024]
[1770035695187,2.17661406,2307.4,2306.7,0.0008024]
[1770035695387,1.24275505,2307.4,2306.7,0.0008024]
[1770035695611,13.66920559,2307.4,2306.7,0.0008024]
[1770035697015,13.66920559,2307.4,2305.8,0.47877883]
[1770035697016,13.66920559,2307.4,2305.8,0.1115155]
[1770035697319,12.42645054,2306.8,2305.8,0.1115155]
[1770035698006,12.42645054,2306.6,2305.8,0.1115155]
[1770035698205,12.42645054,2306.4,2305.8,0.1115155]
[1770035698777,12.42645054,2306.7,2305.8,0.1115155]
[1770035698980,0.93431206,2306.6,2305.8,0.1115155]
[1770035699203,0.93431206,2306.5,2305.8,0.1115155]
[1770035699406,12.42645054,2306.7,2305.8,0.1115155]
[1770035699609,12.42645054,2306.5,2305.8,0.1115155]
[1770035700706,12.42645054,2306.3,2305.8,0.1115155]
[1770035701785,2.52464184,2306.6,2305.8,0.1115155]
[1770035701786,14.95109238,2306.6,2305.8,0.1115155]
[1770035701987,0.93392752,2306.5,2305.8,0.1115155]
[1770035702288,13.78564076,2306.6,2305.8,0.1115155]
[1770035702495,0.60752212,2306.5,2305.8,0.1115155]
[1770035702808,13.03397266,2306.5,2305.8,0.1115155]
[1770035702989,12.42645054,2306.3,2305.8,0.1115155]
[1770035703190,12.42645054,2306.3,2305.1,0.0008036]
[1770035703393,12.42645054,2306.1,2305.1,0.0008036]
[1770035703592,12.42645054,2305.9,2305.1,0.0008036]
[1770035706014,12.42645054,2306.3,2305.1,0.0008036]
[1770035707191,12.42645054,2306.3,2306.0,0.001]
[1770035707392,0.60752212,2306.5,2306.0,0.001]
[1770035707598,12.42645054,2307.0,2306.0,0.001]
[1770035708226,12.42645054,2307.0,2305.6,0.2335703]
[1770035708890,12.42645054,2307.0,2305.6,6.33641396]
[1770035709090,12.42645054,2307.0,2305.7,14.5]
[1770035709993,12.42645054,2307.0,2305.5,1.0843521]
[1770035710323,12.42645054,2307.0,2305.3,16.91432514]
[1770035710324,12.8180678,2306.8,2305.4,0.2335703]
[1770035710614,12.8180678,2306.8,2305.5,14.5]
[1770035714414,12.8180678,2306.8,2305.3,7.01184366]
[1770035714615,12.8180678,2306.8,2305.4,6.10284366]
[1770035714789,1.49698229,2306.7,2305.5,0.80962678]
[1770035715194,14.31505009,2306.7,2305.5,0.80962678]
[1770035715821,14.31505009,2306.7,2305.6,14.5]
[1770035716025,12.8180678,2307.0,2305.6,20.60284366]
[1770035717308,12.8180678,2306.8,2305.5,0.80962678]
[1770035717608,12.8180678,2306.6,2305.5,0.909]
[1770035718002,12.8180678,2306.4,2305.5,0.909]
[1770035719534,12.8180678,2306.4,2304.9,0.09020693]
[1770035719723,12.8180678,2306.2,2304.9,0.09020693]
[1770035720029,12.8180678,2306.0,2304.9,0.09020693]
[1770035720205,12.8180678,2305.8,2304.9,0.09020693]
[1770035721142,12.8180678,2305.8,2305.3,0.001]
[1770035721626,12.8180678,2305.8,2304.9,0.09020693]
[1770035722030,13.7270678,2305.8,2304.9,0.09020693]
[1770035722605,12.8180678,2305.6,2304.9,0.09020693]
[1770035722801,14.19320552,2305.5,2304.9,0.09020693]
[1770035723354,14.19320552,2305.5,2304.4,0.0008016]
[1770035724804,12.8180678,2305.3,2304.4,0.0008016]
[1770035725006,12.8180678,2305.1,2304.4,0.0008016]
[1770035725743,12.8180678,2305.1,2303.6,0.0008016]
[1770035725744,12.8180678,2304.7,2303.6,0.0008016]
[1770035726037,12.8180678,2304.5,2303.6,0.0008016]
[1770035726544,12.8180678,2304.3,2302.5,1.99475136]
[1770035726758,2.09838739,2304.4,2302.2,1.08588574]
[1770035726759,12.8180678,2304.1,2302.2,1.08588574]
[1770035727050,12.8180678,2303.9,2302.3,1.08586967]
[1770035727407,12.8180678,2303.7,2302.2,1.05412936]
[1770035727652,13.7485846,2303.6,2301.8,6.19745739]
[1770035727810,14.09987458,2303.6,2302.0,1.08598054]
[1770035728125,12.8180678,2303.4,2301.9,1.67753686]
[1770035728336,12.8180678,2303.2,2301.8,1.08608167]
[1770035728506,12.8180678,2303.2,2301.6,16.77536857]
[1770035728704,12.8180678,2303.2,2301.6,11.66409993]
[1770035728918,12.8180678,2303.2,2301.6,10.57791118]
[1770035729121,12.8180678,2303.2,2301.3,6.19745739]
[1770035729326,0.91,2303.4,2301.4,1.77968841]
[1770035729327,12.8180678,2303.0,2301.4,1.77968841]
[1770035729517,12.8180678,2303.0,2301.2,1.0215155]
[1770035729737,12.8180678,2302.8,2301.2,1.0215155]
[1770035729937,13.7280678,2302.8,2301.2,2.10787544]
[1770035730264,13.7280678,2302.8,2301.2,8.30533448]
[1770035730466,14.19087458,2302.7,2301.3,1.88832457]
[1770035730950,14.19087458,2302.7,2301.2,0.1115155]
[1770035731457,12.8180678,2302.5,2301.2,0.1115155]
[1770035732612,13.7280678,2302.5,2301.2,0.1115155]
[1770035733014,1.37280678,2302.7,2301.2,11.77579306]
[1770035733358,14.19087458,2302.7,2301.2,0.1115155]
[1770035733509,0.91,2303.0,2301.2,0.1115155]
[1770035733510,12.8180678,2302.5,2301.2,0.1115155]
[1770035733937,12.8180678,2302.3,2301.2,0.1115155]
[1770035735255,12.8180678,2302.3,2301.4,0.001]
[1770035735612,12.8180678,2302.3,2301.2,0.01844167]
[1770035735947,12.8180678,2302.1,2301.2,0.01844167]
[1770035738319,13.7280678,2302.1,2301.2,0.01844167]